bitfinex/quotes_SOLUSD_20240714
["timestamp","ask_amount","ask_price","bid_price","bid_amount"]
[1720948539495,12.81648818,145.66,145.62,15.0211]
[1720948539701,11.1,145.64,145.62,15.0211]
[1720948544285,11.1,145.65,145.62,15.0211]
[1720948546916,11.1,145.64,145.62,15.0211]
[1720948547615,11.1,145.65,145.62,15.0211]
[1720948549507,11.1,145.66,145.62,15.0211]
[1720948550992,1.7166255,145.7,145.62,26.1211]
[1720948551320,11.1,145.67,145.62,26.1211]
[1720948551924,11.1,145.66,145.62,26.1211]
[1720948553822,1.7166255,145.7,145.62,26.1211]
[1720948554013,11.1,145.67,145.62,26.1211]
[1720948554817,11.1,145.67,145.62,32.2327]
[1720948555020,11.1,145.68,145.63,11.1]
[1720948555203,11.1,145.67,145.63,11.1]
[1720948555722,11.1,145.67,145.62,32.2327]
[1720948558320,11.1,145.67,145.62,21.1327]
[1720948558520,11.1,145.67,145.62,32.2327]
[1720948561423,1.71627183,145.71,145.62,21.1327]
[1720948561636,11.1,145.69,145.64,11.1]
[1720948561800,11.1,145.69,145.65,11.1]
[1720948562127,11.1,145.69,145.64,11.1]
[1720948562823,1.71610653,145.72,145.65,11.1]
[1720948563127,11.1,145.69,145.65,11.1]
[1720948564809,11.1,145.69,145.63,45.0]
[1720948565042,11.1,145.69,145.64,11.1]
[1720948565529,11.1,145.68,145.63,56.1]
[1720948567540,11.1,145.69,145.64,11.1]
[1720948569111,1.71610653,145.72,145.66,11.1]
[1720948569322,11.1,145.71,145.66,11.1]
[1720948570425,12.81579931,145.74,145.65,16.5497]
[1720948570609,11.1,145.68,145.65,16.5497]
[1720948573811,11.1,145.67,145.65,16.5497]
[1720948574132,6.2921,145.72,145.63,11.1]
[1720948574306,11.1,145.68,145.64,56.1]
[1720948574811,11.1,145.69,145.64,56.1]
[1720948575121,11.1,145.68,145.64,56.1]
[1720948575617,11.1,145.68,145.64,45.0]
[1720948576310,1.71602417,145.71,145.63,11.1]
[1720948576511,11.1,145.67,145.63,11.1]
[1720948580241,1.71626017,145.7,145.63,11.1]
[1720948580420,11.1,145.67,145.63,11.1]
[1720948581826,11.1,145.68,145.64,45.0]
[1720948582032,11.1,145.69,145.64,56.1]
[1720948582524,11.1,145.68,145.63,11.1]
[1720948585844,11.1,145.68,145.61,16.5497]
[1720948585845,1.71605045,145.72,145.64,11.1]
[1720948586026,1.71605045,145.72,145.65,11.1]
[1720948586027,11.1,145.69,145.65,11.1]
[1720948586220,11.1,145.69,145.66,15.0382]
[1720948586933,10.6,145.69,145.66,15.0382]
[1720948587948,11.1,145.68,145.66,15.0382]
[1720948589844,11.1,145.69,145.66,15.0382]
[1720948591846,1.71605045,145.72,145.66,15.0382]
[1720948592047,1.71587762,145.74,145.66,15.0382]
[1720948592349,11.1,145.7,145.66,15.0382]
[1720948592924,1.71586666,145.73,145.66,26.1382]
[1720948593134,11.1,145.71,145.66,32.7153]
[1720948593439,1.71579831,145.73,145.67,11.1]
[1720948593639,11.1,145.71,145.67,11.1]
[1720948594439,11.1,145.71,145.66,32.7153]
[1720948594758,11.1,145.7,145.66,21.6153]
[1720948599058,1.71579831,145.73,145.66,32.7153]
[1720948599257,11.1,145.71,145.67,11.1]
[1720948599429,11.1,145.72,145.67,56.1]
[1720948599954,11.1,145.72,145.68,11.1]
[1720948600661,1.71566226,145.75,145.68,11.1]
[1720948600957,11.1,145.72,145.68,11.1]
[1720948601253,11.1,145.72,145.67,56.1]
[1720948601851,11.1,145.71,145.67,45.0]
[1720948603845,11.1,145.71,145.67,56.1]
[1720948604340,11.1,145.72,145.67,56.1]
[1720948604853,1.71569945,145.76,145.67,56.1]
[1720948604854,11.1,145.74,145.7,15.9516]
[1720948608637,11.1,145.73,145.7,15.9516]
[1720948608838,11.1,145.74,145.7,15.9516]
[1720948610841,11.1,145.73,145.7,15.9516]
[1720948611333,11.1,145.72,145.7,15.9516]
[1720948613147,11.1,145.71,145.7,15.9516]
[1720948613660,11.1,145.72,145.7,15.9516]
[1720948616863,11.1,145.73,145.7,15.9516]
[1720948620043,1.7154622,145.78,145.7,27.0516]
[1720948620366,11.1,145.75,145.7,27.0516]
[1720948621061,11.1,145.75,145.7,15.9516]
[1720948621255,11.1,145.75,145.7,27.0516]
[1720948621854,11.1,145.75,145.7,15.9516]
[1720948622040,1.71534585,145.79,145.71,62.2657]
[1720948622247,11.1,145.76,145.71,51.1657]
[1720948622444,11.1,145.77,145.72,11.1]
[1720948623045,11.1,145.76,145.72,11.1]
[1720948623383,11.1,145.76,145.71,62.2657]
[1720948623879,11.1,145.75,145.71,51.1657]
[1720948624245,11.1,145.75,145.71,6.1657]
[1720948624975,11.1,145.76,145.71,17.2657]
[1720948625150,1.71534585,145.79,145.72,56.1]
[1720948625353,11.1,145.77,145.72,56.1]
[1720948626549,4.54671794,145.8,145.72,56.1]
[1720948626898,1.71502058,145.79,145.73,11.1]
[1720948627067,11.1,145.77,145.73,11.1]
[1720948627578,11.1,145.77,145.74,16.144]
[1720948635649,11.1,145.78,145.74,16.144]
[1720948636985,9.07807496,145.84,145.75,26.1031]
[1720948637153,11.1,145.83,145.78,16.144]
[1720948637354,4.47603969,145.87,145.78,27.244]
[1720948637583,11.1,145.83,145.78,27.244]
[1720948638673,11.1,145.83,145.79,11.1]
[1720948638890,11.1,145.84,145.79,11.1]
[1720948639563,11.1,145.84,145.8,11.1]
[1720948639765,11.1,145.84,145.79,11.1]
[1720948640878,1.71447113,145.87,145.78,16.144]
[1720948640879,1.71447113,145.87,145.8,11.1]
[1720948641180,11.1,145.84,145.8,11.1]
[1720948641680,11.1,145.85,145.8,11.1]
[1720948642066,1.71447113,145.87,145.8,11.1]
[1720948642267,11.1,145.85,145.8,11.1]
[1720948644662,11.1,145.85,145.81,11.1]
[1720948647860,11.1,145.86,145.81,11.1]
[1720948650589,4.64256628,145.89,145.81,11.1]
[1720948650790,11.1,145.86,145.81,11.1]
[1720948651962,11.1,145.86,145.8,6.5154]
[1720948652192,11.1,145.86,145.81,11.1]
[1720948653766,11.1,145.87,145.82,11.1]
[1720948654083,1.71405804,145.86,145.82,11.1]
[1720948654590,0.2,145.89,145.86,16.0425]
[1720948654760,0.2,145.89,145.86,27.1425]
[1720948656078,0.2,145.89,145.87,11.1]
[1720948656974,0.2,145.89,145.88,11.1]
[1720948657976,0.2,145.89,145.87,11.1]
[1720948659064,2.58446057,145.94,145.89,16.0425]
[1720948659288,0.8710546,145.94,145.89,27.1425]
[1720948659492,11.1,145.93,145.89,27.1425]
[1720948659979,11.1,145.93,145.89,16.0425]
[1720948660189,11.1,145.93,145.89,27.1425]
[1720948660501,11.9710546,145.94,145.89,27.1425]
[1720948661193,0.8710546,145.94,145.89,27.1425]
[1720948661593,11.9710546,145.94,145.89,27.1425]
[1720948661800,11.9710546,145.94,145.9,11.1]
[1720948661980,0.8710546,145.94,145.9,11.1]
[1720948663580,0.8710546,145.94,145.91,11.1]
[1720948664084,0.8710546,145.94,145.9,11.1]
[1720948665194,0.8710546,145.94,145.91,11.1]
[1720948668996,0.8710546,145.94,145.89,22.5578]
[1720948669203,11.9710546,145.94,145.9,11.1]
[1720948670875,0.8710546,145.94,145.9,11.1]
[1720948671075,11.9710546,145.94,145.9,11.1]
[1720948671400,0.8710546,145.94,145.9,11.1]
[1720948671580,11.9710546,145.94,145.9,11.1]
[1720948672303,0.8710546,145.94,145.9,11.1]
[1720948672488,11.9710546,145.94,145.9,11.1]
[1720948672683,11.9710546,145.94,145.89,22.5578]
[1720948672985,11.1,145.92,145.89,16.0425]
[1720948675290,11.1,145.93,145.89,16.0425]
[1720948677806,0.8710546,145.94,145.89,16.0425]
[1720948678112,11.9710546,145.94,145.89,27.1425]
[1720948678490,0.8710546,145.94,145.89,27.1425]
[1720948678685,11.9710546,145.94,145.89,27.1425]
[1720948678990,11.1,145.93,145.89,27.1425]
[1720948680623,0.8710546,145.94,145.89,27.1425]
[1720948680916,11.1,145.93,145.89,16.0425]
[1720948681093,11.1,145.93,145.89,27.1425]
[1720948681409,11.1,145.93,145.89,16.0425]
[1720948681582,0.8710546,145.94,145.9,11.1]
[1720948681786,11.9710546,145.94,145.9,11.1]
[1720948682012,11.9710546,145.94,145.89,27.1425]
[1720948682516,11.1,145.93,145.89,27.1425]
[1720948683000,11.9710546,145.94,145.89,27.1425]
[1720948684419,12.81321239,145.93,145.89,16.0425]
[1720948684590,11.1,145.93,145.89,16.0425]
[1720948685918,11.1,145.93,145.89,27.1425]
[1720948687208,11.1,145.93,145.89,16.0425]
[1720948687595,11.1,145.93,145.89,27.1425]
[1720948689808,11.1,145.93,145.89,16.0425]
[1720948690222,1.71336146,145.92,145.85,22.0151]
[1720948690523,11.1,145.89,145.85,22.0151]
[1720948691396,11.1,145.9,145.85,33.1151]
[1720948691718,11.1,145.91,145.86,11.1]
[1720948692098,2.5846581,145.94,145.89,11.1]
[1720948692327,11.9710546,145.94,145.89,11.1]
[1720948692526,11.1,145.93,145.89,11.1]
[1720948692721,0.8710546,145.94,145.89,11.1]
[1720948692916,11.9710546,145.94,145.9,15.4998]
[1720948693121,0.8710546,145.94,145.9,15.4998]
[1720948693420,0.8710546,145.94,145.9,26.5998]
[1720948694524,11.9710546,145.94,145.9,15.4998]
[1720948695030,11.9710546,145.94,145.9,26.5998]
[1720948696628,0.8710546,145.94,145.9,26.5998]
[1720948698602,11.9710546,145.94,145.9,26.5998]
[1720948700306,0.8710546,145.94,145.9,26.5998]
[1720948700520,11.9710546,145.94,145.9,26.5998]
[1720948700909,0.8710546,145.94,145.9,26.5998]
[1720948703524,0.8710546,145.94,145.91,6.3987]
[1720948704128,0.8710546,145.94,145.91,17.4987]
[1720948706035,0.8710546,145.94,145.91,6.3987]
[1720948706224,0.8710546,145.94,145.91,17.4987]
[1720948708308,0.8710546,145.94,145.91,6.3987]
[1720948708510,0.8710546,145.94,145.91,17.4987]
[1720948708934,0.8710546,145.94,145.91,6.3987]
[1720948709718,0.8710546,145.94,145.9,15.4998]
[1720948709907,0.8710546,145.94,145.9,26.5998]
[1720948711113,11.9710546,145.94,145.9,26.5998]
[1720948711421,11.9710546,145.94,145.9,15.4998]
[1720948711929,11.9710546,145.94,145.9,26.5998]
[1720948712428,11.9710546,145.94,145.9,15.4998]
[1720948712736,11.9710546,145.94,145.9,26.5998]
[1720948712922,1.7130471,145.93,145.87,6.0955]
[1720948713154,11.1,145.92,145.87,6.0955]
[1720948713325,11.1,145.92,145.87,17.1955]
[1720948714029,2.58433771,145.94,145.87,17.1955]
[1720948714230,11.9710546,145.94,145.9,11.1]
[1720948714422,0.8710546,145.94,145.9,11.1]
[1720948714818,0.8710546,145.94,145.91,11.1]
[1720948716238,0.8710546,145.94,145.92,11.1]
[1720948716745,0.8710546,145.94,145.91,11.1]
[1720948717415,0.8710546,145.94,145.9,16.5119]
[1720948717607,0.8710546,145.94,145.9,27.6119]
[1720948724520,0.8710546,145.94,145.91,11.1]
[1720948726519,0.8710546,145.94,145.92,11.1]
[1720948726824,0.8710546,145.94,145.9,16.5119]
[1720948727035,0.8710546,145.94,145.91,11.1]
[1720948727727,0.8710546,145.94,145.93,11.1]
[1720948727934,0.8710546,145.94,145.93,46.234]
[1720948728162,0.8710546,145.94,145.93,91.234]
[1720948728727,0.8710546,145.94,145.93,80.134]
[1720948729123,0.8710546,145.94,145.93,91.234]
[1720948729633,0.8710546,145.94,145.93,80.134]
[1720948729828,0.8710546,145.94,145.93,91.234]
[1720948736262,0.8710546,145.94,145.93,102.334]
[1720948736437,0.2,145.99,145.93,102.334]
[1720948736638,0.2,145.99,145.98,11.1]
[1720948738633,0.2,145.99,145.98,31.1]
[1720948738847,0.2,145.99,145.98,11.1]
[1720948741652,0.2,145.99,145.94,45.0]
[1720948741828,0.2,145.99,145.98,11.1]
[1720948742546,0.2,145.99,145.97,11.1]
[1720948743960,0.2,145.99,145.98,11.1]
[1720948748837,0.2,145.99,145.94,45.0]
[1720948749045,0.2,145.99,145.98,11.1]
[1720948749637,0.2,145.99,145.98,31.1]
[1720948749837,0.2,145.99,145.98,11.1]
[1720948751655,0.2,145.99,145.98,76.1]
[1720948753170,0.2,145.99,145.98,65.0]
[1720948753347,0.2,145.99,145.98,76.1]
[1720948756160,0.2,145.99,145.98,11.1]
[1720948756354,0.2,145.99,145.97,15.8857]
[1720948756674,0.2,145.99,145.98,11.1]
[1720948757847,0.2,145.99,145.97,15.8857]
[1720948758073,0.2,145.99,145.98,11.1]
[1720948758675,0.2,145.99,145.98,56.1]
[1720948759958,0.2,145.99,145.98,45.0]
[1720948760171,0.2,145.99,145.98,56.1]
[1720948760480,0.2,145.99,145.98,11.1]
[1720948760663,0.2,145.99,145.89,22.2862]
[1720948760982,0.2,145.99,145.96,11.1]
[1720948761277,0.2,145.99,145.9,20.0]
[1720948761455,0.2,145.99,145.96,11.1]
[1720948761656,0.2,145.99,145.97,11.1]
[1720948762175,0.2,145.99,145.9,20.0]
[1720948762381,0.2,145.99,145.97,11.1]
[1720948762759,0.2,145.99,145.9,20.0]
[1720948762955,11.3,145.99,145.89,22.2862]
[1720948763279,1.71265911,145.98,145.89,22.2862]
[1720948763479,1.71265911,145.98,145.95,11.1]
[1720948764182,1.71265911,145.98,145.89,22.2862]
[1720948764355,1.71265911,145.98,145.94,11.1]
[1720948765386,2.65145911,146.03,145.94,11.1]
[1720948765592,11.1,145.99,145.94,11.1]
[1720948765757,1.71282018,145.98,145.94,11.1]
[1720948766274,1.71282018,145.98,145.95,11.1]
[1720948767953,11.1,145.99,145.95,11.1]
[1720948768271,1.71282059,145.98,145.95,11.1]
[1720948770157,1.71282065,146.02,145.96,11.1]
[1720948770362,14.66774151,146.01,145.96,11.1]
[1720948770573,12.8126416,146.01,145.96,11.1]
[1720948771764,1.71263988,146.02,145.98,11.1]
[1720948771974,1.71241463,146.01,145.98,11.1]
[1720948772174,1.71240154,146.02,145.98,11.1]
[1720948772368,1.71240767,146.01,145.98,11.1]
[1720948772690,11.1,146.01,145.94,16.3935]
[1720948772983,11.1,145.99,145.95,11.1]
[1720948773185,1.71265278,145.98,145.95,11.1]
[1720948773359,11.1,146.0,145.9,36.3935]
[1720948773566,11.1,146.0,145.95,11.1]
[1720948773567,1.71264799,145.99,145.95,11.1]
[1720948775571,1.71264799,145.99,145.92,1.37011883]
[1720948775874,1.71264799,145.99,145.95,11.1]
[1720948776083,11.1,145.96,145.86,16.3935]
[1720948776375,11.1,145.92,145.87,11.1]
[1720948777381,30.0,145.91,145.87,11.1]
[1720948778679,31.71342135,145.91,145.86,16.3935]
[1720948778890,31.71342135,145.91,145.86,11.1]
[1720948779098,11.1,145.89,145.83,16.3935]
[1720948779390,38.13032135,145.91,145.84,11.1]
[1720948779391,30.0,145.88,145.84,11.1]
[1720948779563,41.1,145.88,145.84,11.1]
[1720948779760,30.0,145.88,145.84,11.1]
[1720948780163,30.0,145.88,145.85,1.37110669]
[1720948780970,30.0,145.88,145.84,11.1]
[1720948782789,11.1,145.87,145.82,11.1]
[1720948782964,31.71402203,145.86,145.79,16.3935]
[1720948783163,31.71402203,145.86,145.82,11.1]
[1720948784782,31.71402203,145.86,145.8,1.37124273]
[1720948785088,11.1,145.84,145.8,1.37124273]
[1720948785288,31.71402203,145.86,145.8,1.37124273]
[1720948785491,11.1,145.84,145.8,1.37124273]
[1720948785676,11.1,145.84,145.8,12.47124273]
[1720948785881,30.0,145.83,145.8,12.47124273]
[1720948787697,30.0,145.83,145.8,1.37124273]
[1720948787994,30.0,145.83,145.79,27.4935]
[1720948788164,41.1,145.83,145.79,16.3935]
[1720948788583,41.1,145.83,145.79,27.4935]
[1720948788997,41.1,145.83,145.79,16.3935]
[1720948789477,41.1,145.83,145.78,11.1]
[1720948789679,41.1,145.83,145.79,45.0]
[1720948791177,41.1,145.83,145.77,11.1]
[1720948791178,12.81454189,145.82,145.77,11.1]
[1720948791381,12.81454189,145.82,145.78,20.0]
[1720948791382,30.0,145.81,145.78,20.0]
[1720948791595,30.0,145.81,145.79,1.37166392]
[1720948792493,30.0,145.81,145.8,11.1]
[1720948792673,30.0,145.81,145.8,56.1]
[1720948792872,1.71438471,145.84,145.8,56.1]
[1720948793178,11.1,145.83,145.78,31.1]
[1720948793495,11.1,145.84,145.79,56.1]
[1720948793995,11.1,145.83,145.79,56.1]
[1720948794499,1.71436631,145.87,145.79,56.1]
[1720948794698,11.1,145.83,145.8,1.37149136]
[1720948794902,11.1,145.84,145.8,1.37149136]
[1720948798206,1.71436631,145.87,145.8,1.37149136]
[1720948798401,11.1,145.84,145.8,1.37149136]
[1720948799500,11.1,145.83,145.8,1.37149136]
[1720948799674,30.0,145.81,145.8,1.37149136]
[1720948799877,30.0,145.81,145.79,56.1]
[1720948801607,30.0,145.81,145.79,57.4715784]
[1720948801813,30.0,145.81,145.79,57.47157867]
[1720948801978,30.0,145.81,145.79,46.37157867]
[1720948802175,30.0,145.81,145.76,16.5531]
[1720948802377,30.0,145.81,145.77,76.1]
[1720948802805,30.0,145.81,145.78,1.37164486]
[1720948803104,11.1,145.82,145.78,12.47164486]
[1720948803409,11.1,145.83,145.79,11.1]
[1720948805707,11.1,145.83,145.8,1.37154277]
[1720948806093,30.0,145.81,145.8,1.37154277]
[1720948806886,30.0,145.81,145.79,11.1]
[1720948807197,30.0,145.81,145.78,11.1]
[1720948808591,41.1,145.81,145.77,45.0]
[1720948808903,41.1,145.81,145.76,16.5531]
[1720948809108,11.1,145.78,145.74,11.1]
[1720948809312,31.71491227,145.77,145.72,15.5481]
[1720948809510,30.0,145.77,145.73,12.47192981]
[1720948809691,30.0,145.77,145.73,1.37192981]
[1720948809880,30.0,145.77,145.73,12.47192981]
[1720948810086,41.1,145.77,145.73,11.1]
[1720948810486,41.1,145.77,145.74,45.0]
[1720948810694,11.1,145.76,145.72,26.6481]
[1720948810907,41.1,145.75,145.71,11.3]
[1720948811101,41.1,145.75,145.71,0.2]
[1720948812412,41.1,145.75,145.71,20.2]
[1720948812929,41.1,145.75,145.71,0.2]
[1720948813092,41.1,145.75,145.71,45.2]
[1720948813288,41.1,145.75,145.71,0.2]
[1720948813824,41.1,145.75,145.71,11.3]
[1720948814330,30.0,145.75,145.72,1.37227936]
[1720948814528,41.1,145.75,145.72,1.37227936]
[1720948814728,30.0,145.75,145.72,12.47227936]
[1720948815035,30.0,145.75,145.73,11.1]
[1720948815208,30.0,145.75,145.74,1.37216464]
[1720948816736,30.0,145.75,145.74,57.47216464]
[1720948816937,30.0,145.75,145.74,56.1]
[1720948817137,11.1,145.8,145.74,56.1]
[1720948817305,12.81489291,145.79,145.75,11.1]
[1720948817500,11.1,145.78,145.74,56.1]
[1720948817912,11.1,145.79,145.74,56.1]
[1720948818114,11.1,145.79,145.75,1.37194217]
[1720948818344,11.1,145.8,145.75,12.47194217]
[1720948818643,1.7149277,145.79,145.75,12.47194217]
[1720948818932,12.8149277,145.79,145.75,1.37194217]
[1720948819110,11.1,145.79,145.75,1.37194217]
[1720948819312,11.1,145.79,145.74,56.1]
[1720948819512,1.71496544,145.78,145.71,1.57197235]
[1720948819742,11.1,145.78,145.73,11.1]
[1720948819907,11.1,145.78,145.74,1.37209047]
[1720948820407,1.71511647,145.8,145.74,12.47209047]
[1720948820607,1.71502387,145.79,145.74,12.47209047]
[1720948820808,1.71502559,145.82,145.74,12.47209047]
[1720948821014,11.1,145.79,145.75,12.47202047]
[1720948821231,11.1,145.79,145.76,1.37193884]
[1720948823037,11.1,145.79,145.74,11.1]
[1720948823211,12.81492913,145.78,145.71,45.2]
[1720948823412,12.81492913,145.78,145.73,11.1]
[1720948823612,12.81492913,145.78,145.74,12.47204723]
[1720948824210,12.81492913,145.78,145.72,20.0]
[1720948824420,11.1,145.76,145.72,1.37210937]
[1720948825751,42.81538647,145.75,145.71,12.67230918]
[1720948825915,42.81538647,145.75,145.71,11.3]
[1720948826328,42.81538647,145.75,145.71,0.2]
[1720948826632,11.1,145.74,145.71,0.2]
[1720948826828,42.81538647,145.75,145.71,0.2]
[1720948827813,11.1,145.73,145.71,0.2]
[1720948828013,42.81565446,145.72,145.71,0.2]
[1720948828443,31.71565446,145.72,145.71,0.2]
[1720948828647,42.81565446,145.72,145.71,0.2]
[1720948829144,12.81565446,145.72,145.71,0.2]
[1720948831945,42.81565446,145.72,145.71,0.2]
[1720948834341,42.81565446,145.72,145.62,15.4977]
[1720948834342,9.1734,145.71,145.62,15.4977]
[1720948834541,11.1,145.66,145.62,15.4977]
[1720948835352,11.1,145.66,145.62,26.5977]
[1720948835554,1.71643036,145.68,145.62,26.5977]
[1720948835740,11.1,145.67,145.62,26.5977]
[1720948835924,12.81643036,145.68,145.63,11.1]
[1720948836342,12.81643036,145.68,145.62,15.4977]
[1720948836534,11.1,145.67,145.62,26.5977]
[1720948837028,12.81643116,145.66,145.62,26.5977]
[1720948837230,12.81643116,145.66,145.62,15.4977]
[1720948837453,11.1,145.65,145.62,15.4977]
[1720948838258,11.1,145.65,145.61,0.2]
[1720948839245,1.71657362,145.64,145.61,0.2]
[1720948839453,12.81657362,145.64,145.61,0.2]
[1720948840742,41.1,145.63,145.61,0.2]
[1720948841041,30.0,145.63,145.61,0.2]
[1720948842049,41.1,145.63,145.61,0.2]
[1720948842553,1.71675631,145.62,145.61,0.2]
[1720948842749,42.81675631,145.62,145.61,0.2]
[1720948843827,30.0,145.62,145.61,0.2]
[1720948845655,41.1,145.62,145.61,0.2]
[1720948852947,30.0,145.62,145.61,0.2]
[1720948853545,41.1,145.62,145.61,0.2]
[1720948854462,30.0,145.62,145.61,0.2]
[1720948854836,41.1,145.62,145.61,0.2]
[1720948858333,30.0,145.62,145.61,0.2]
[1720948858639,11.1,145.64,145.61,0.2]
[1720948858946,11.1,145.65,145.61,1.57337761]
[1720948859761,1.71671482,145.64,145.61,1.57337761]
[1720948859964,11.1,145.65,145.61,1.57337761]
[1720948859965,1.71673774,145.68,145.61,12.67337761]
[1720948860172,1.71645519,145.67,145.61,28.04217761]
[1720948860337,11.1,145.66,145.62,11.1]
[1720948860855,11.1,145.65,145.61,15.5688]
[1720948861066,1.71662937,145.64,145.61,15.5688]
[1720948861266,11.1,145.65,145.61,15.5688]
[1720948861446,11.1,145.65,145.61,16.94217408]
[1720948861644,11.1,145.65,145.61,28.04217408]
[1720948862251,1.71662937,145.68,145.61,28.04217408]
[1720948862451,1.7163779,145.68,145.62,56.1]
[1720948862656,1.7163779,145.69,145.64,11.1]
[1720948862858,30.0,145.65,145.62,62.2847]
[1720948863042,30.0,145.65,145.62,51.1847]
[1720948863240,30.0,145.65,145.61,15.5688]
[1720948863565,41.1,145.65,145.61,15.5688]
[1720948863753,41.1,145.65,145.61,16.94216506]
[1720948863957,30.0,145.65,145.61,16.94216506]
[1720948864264,41.1,145.65,145.61,16.94216506]
[1720948864437,12.8166439,145.64,145.61,15.5688]
[1720948865457,30.0,145.65,145.61,15.5688]
[1720948865756,30.0,145.63,145.62,12.47332278]
[1720948865949,30.0,145.63,145.61,15.5688]
[1720948866357,30.0,145.63,145.61,16.94213456]
[1720948867040,11.1,145.65,145.61,15.5688]
[1720948868270,11.1,145.65,145.61,16.94212155]
[1720948870563,11.1,145.65,145.61,15.5688]
[1720948871059,11.1,145.63,145.61,15.5688]
[1720948871264,11.1,145.62,145.61,0.2]
[1720948873660,41.1,145.62,145.61,0.2]
[1720948874945,86.1,145.62,145.61,0.2]
[1720948875138,87.81742907,145.62,145.61,0.2]
[1720948878248,86.1,145.62,145.61,0.2]
[1720948880863,76.71751912,145.62,145.61,0.2]
[1720948881171,87.81751912,145.62,145.61,0.2]
[1720948881871,30.0,145.62,145.61,0.2]
[1720948882238,41.1,145.62,145.61,0.2]
[1720948882470,30.0,145.62,145.61,0.2]
[1720948883050,1.7168886,145.63,145.61,0.2]
[1720948883457,4.82249861,145.71,145.61,11.3]
[1720948883778,11.1,145.65,145.61,0.2]
[1720948883952,11.45364498,145.64,145.61,0.2]
[1720948884153,11.1,145.64,145.61,0.2]
[1720948884970,0.35364498,145.63,145.61,0.2]
[1720948885371,11.45364498,145.63,145.61,0.2]
[1720948891069,11.1,145.62,145.61,0.2]
[1720948892489,56.1,145.62,145.61,0.2]
[1720948893170,57.96015905,145.62,145.61,0.2]
[1720948895199,57.96025424,145.62,145.61,0.2]
[1720948895762,69.06025424,145.62,145.61,0.2]
[1720948896269,57.96025424,145.62,145.61,0.2]
[1720948896672,87.96025424,145.62,145.61,0.2]
[1720948898195,57.96025424,145.62,145.61,0.2]
[1720948898885,56.1,145.62,145.61,0.2]
[1720948899071,57.96023065,145.62,145.61,0.2]
[1720948900370,58.31387563,145.62,145.61,0.2]
[1720948900880,58.31391962,145.62,145.61,0.2]
[1720948901283,58.3139619,145.62,145.61,0.2]
[1720948902071,56.45364498,145.62,145.61,0.2]
[1720948902691,58.31396018,145.62,145.61,0.2]
[1720948904402,56.45364498,145.62,145.61,0.2]
[1720948906169,0.35364498,145.62,145.61,0.2]
[1720948906369,0.35364498,145.63,145.61,0.2]
[1720948906798,7.5185241,145.71,145.61,0.2]
[1720948907104,11.1,145.63,145.61,0.2]
[1720948907282,11.1,145.63,145.61,15.3449]
[1720948907482,0.35364498,145.62,145.61,15.3449]
[1720948907890,11.45364498,145.62,145.61,15.3449]